fUSD/lending_fUSD_20250313
["ID","MTS","AMOUNT","RATE_DAILY","PERIOD"]
[356068742,1741878650225,-500.0,0.00028413,18]
[356068743,1741878650235,-500.0,0.00028413,18]
[356068744,1741878650246,-500.0,0.00028413,18]
[356068745,1741878650256,-619.89,0.00028413,18]
[356068746,1741878650266,-508.99,0.00028413,18]
[356068747,1741878650276,-506.86174906,0.00028413,18]
[356068748,1741878650287,-500.0,0.00028413,18]
[356068749,1741878650297,-500.0,0.00028413,18]
[356068750,1741878650307,-500.0,0.00028413,18]
[356068751,1741878650317,-500.0,0.00028413,18]
[356068752,1741878650326,-500.0,0.00028413,18]
[356068753,1741878650336,-500.0,0.00028413,18]
[356068754,1741878650347,-1403.55,0.00028413,7]
[356068755,1741878650356,-500.0,0.00028413,18]
[356068756,1741878650366,-739.12,0.00028413,18]
[356068757,1741878650375,-500.0,0.00028413,18]
[356068758,1741878650385,-500.0,0.00028413,18]
[356068759,1741878650395,-500.0,0.00028413,18]
[356068760,1741878650404,-500.0,0.00028413,18]
[356068761,1741878650414,-500.0,0.00028413,18]
[356068762,1741878650423,-500.0,0.00028413,18]
[356068763,1741878650433,-287.13597598,0.00028413,18]
[356068764,1741878650660,-500.0,0.00028412,18]
[356068765,1741878650669,-212.86402402,0.00028413,18]
[356068766,1741878650679,-500.0,0.00028413,18]
[356068767,1741878650688,-500.0,0.00028413,18]
[356068768,1741878650698,-500.0,0.00028413,18]
[356068769,1741878650711,-1013.5,0.00028413,18]
[356068770,1741878650720,-328.53771122,0.00028413,18]
[356068771,1741878650736,-171.46228878,0.00028413,18]
[356068772,1741878650746,-500.0,0.00028413,18]
[356068773,1741878650755,-500.0,0.00028413,18]
[356068774,1741878650765,-500.0,0.00028413,18]
[356068775,1741878650774,-1005.1,0.00028413,18]
[356068776,1741878650784,-500.0,0.00028413,18]
[356068777,1741878650793,-500.0,0.00028413,18]
[356068778,1741878650807,-500.0,0.00028413,18]
[356068779,1741878650816,-500.0,0.00028413,18]
[356068780,1741878650825,-520.58297114,0.00028413,18]
[356068781,1741878650835,-1207.73,0.00028413,18]
[356068782,1741878650844,-510.30825943,0.00028413,18]
[356068783,1741878650853,-500.0,0.00028413,18]
[356068784,1741878650862,-500.0,0.00028413,18]
[356068785,1741878650871,-798.29,0.00028413,18]
[356068786,1741878650881,-500.0,0.00028413,18]
[356068787,1741878650890,-1837.47,0.00028413,18]
[356068788,1741878650900,-500.0,0.00028413,18]
[356068789,1741878650909,-500.0,0.00028413,18]
[356068790,1741878650919,-500.0,0.00028413,18]
[356068791,1741878650928,-423.99707453,0.00028413,18]
[356068792,1741878650944,-156.03292547,0.00028413,18]
[356068793,1741878650954,-500.0,0.00028413,18]
[356068794,1741878650963,-500.0,0.00028413,18]
[356068795,1741878650972,-829.94,0.00028413,18]
[356068796,1741878650982,-500.0,0.00028413,18]
[356068797,1741878650991,-500.0,0.00028413,18]
[356068798,1741878651001,-531.76,0.00028413,18]
[356068799,1741878651010,-2063.00112447,0.00028413,18]
[356068800,1741878651024,-355.69887553,0.00028413,18]
[356068801,1741878651033,-500.0,0.00028413,18]
[356068802,1741878651042,-92.39514178,0.00028413,18]
[356068803,1741878651054,-463.46485822,0.00028413,18]
[356068804,1741878651064,-506.57118938,0.00028413,18]
[356068805,1741878651073,-32.64699818,0.00028413,18]
[356068806,1741878652593,-467.35300182,0.00028413,18]
[356068807,1741878652604,-721.7,0.00028413,18]
[356068808,1741878652614,-500.0,0.00028413,18]
[356068809,1741878652624,-500.0,0.00028413,18]
[356068810,1741878652634,-500.0,0.00028413,18]
[356068811,1741878652643,-500.0,0.00028413,18]
[356068812,1741878652653,-500.0,0.00028413,18]
[356068813,1741878652663,-896.19,0.00028413,18]
[356068814,1741878652672,-500.0,0.00028413,18]
[356068815,1741878652681,-1505.99,0.00028413,18]
[356068816,1741878652691,-970.08,0.00028413,18]
[356068817,1741878652702,-792.26,0.00028413,18]
[356068818,1741878652711,-500.0,0.00028413,18]
[356068819,1741878652721,-500.0,0.00028413,18]
[356068820,1741878652731,-600.73,0.00028413,18]
[356068821,1741878652741,-500.0,0.00028413,18]
[356068822,1741878652750,-657.48,0.00028413,18]
[356068823,1741878652760,-500.0,0.00028415,18]
[356068824,1741878652769,-591.81721261,0.00028415,18]
[356068825,1741878652779,-500.0,0.00028415,18]
[356068826,1741878652789,-425.48320435,0.00028415,18]
[356068827,1741878652798,-235.40883641,0.00028415,18]
[356068828,1741878652807,-500.0,0.00028415,18]
[356068829,1741878652817,-500.0,0.00028415,18]
[356068830,1741878652826,-500.0,0.00028415,18]
[356068831,1741878652836,-500.0,0.00028415,18]
[356068832,1741878652846,-500.0,0.00028415,18]
[356068833,1741878652855,-500.0,0.00028415,18]
[356068834,1741878652865,-500.0,0.00028415,18]
[356068835,1741878652876,-500.0,0.00028415,18]
[356068836,1741878652885,-500.0,0.00028415,18]
[356068837,1741878652895,-500.0,0.00028415,18]
[356068838,1741878652904,-500.0,0.00028415,18]
[356068839,1741878652914,-500.0,0.00028415,18]
[356068840,1741878652923,-500.0,0.00028415,18]
[356068841,1741878652933,-500.0,0.00028415,18]
[356068842,1741878652943,-500.0,0.00028415,18]
[356068843,1741878652952,-500.0,0.00028415,18]
[356068844,1741878652962,-500.0,0.00028415,18]
[356068845,1741878652971,-500.0,0.00028415,18]
[356068846,1741878652981,-500.0,0.00028415,18]
[356068847,1741878652991,-500.0,0.00028415,18]
[356068848,1741878653001,-516.61,0.00028415,18]
[356068849,1741878653011,-500.0,0.00028415,18]
[356068850,1741878653021,-500.0,0.00028415,18]
[356068851,1741878653030,-510.21,0.00028415,18]
[356068852,1741878653040,-1671.62,0.00028415,18]
[356068853,1741878653050,-500.0,0.00028415,18]
[356068854,1741878653060,-630.29,0.00028415,18]
[356068855,1741878653070,-544.8,0.00028415,18]
[356068856,1741878653079,-387.17427653,0.00028415,18]
[356068857,1741878653089,-500.0,0.00028415,18]
[356068858,1741878653100,-619.89,0.00028415,18]
[356068859,1741878653110,-508.99,0.00028415,18]
[356068860,1741878653120,-500.0,0.00028415,18]
[356068861,1741878653131,-1403.55,0.00028415,7]
[356068862,1741878653141,-739.12,0.00028415,18]
[356068863,1741878653151,-404.35957022,0.00028415,18]
[356068864,1741878653161,-500.0,0.00028415,18]
[356068865,1741878653171,-1013.5,0.00028415,18]
[356068866,1741878653181,-500.0,0.00028415,18]
[356068867,1741878653191,-1005.1,0.00028415,18]
[356068868,1741878653201,-1207.73,0.00028415,18]
[356068869,1741878653214,-798.29,0.00028415,18]
[356068870,1741878653224,-1837.47,0.00028415,18]
[356068871,1741878653233,-580.03,0.00028415,18]
[356068872,1741878653242,-829.94,0.00028415,18]
[356068873,1741878653253,-531.76,0.00028415,18]
[356068874,1741878653263,-2418.7,0.00028415,18]
[356068875,1741878653273,-555.86,0.00028415,18]
[356068876,1741878653285,-721.7,0.00028415,18]
[356068877,1741878653296,-896.19,0.00028415,18]
[356068878,1741878653306,-1505.99,0.00028415,18]
[356068879,1741878653316,-792.26,0.00028415,18]
[356068880,1741878653326,-600.73,0.00028415,18]
[356068881,1741878653336,-657.48,0.00028415,18]
[356068882,1741878653347,-500.0,0.00028418,18]
[356068883,1741878653357,-500.0,0.00028418,18]
[356068884,1741878653367,-500.0,0.00028418,18]
[356068885,1741878653377,-500.0,0.00028418,18]
[356068886,1741878653389,-500.0,0.00028418,18]
[356068887,1741878653399,-500.0,0.00028418,18]
[356068888,1741878653408,-500.0,0.00028418,18]
[356068889,1741878653418,-500.0,0.00028418,18]
[356068890,1741878653429,-500.0,0.00028418,18]
[356068891,1741878653438,-500.0,0.00028418,18]
[356068892,1741878653448,-500.0,0.00028418,18]
[356068893,1741878653458,-500.0,0.00028418,18]
[356068894,1741878653467,-224.06372703,0.00028418,18]
[356068895,1741878653478,-500.0,0.00028418,18]
[356068896,1741878653487,-500.0,0.00028418,18]
[356068897,1741878653497,-242.28633165,0.00028418,18]
[356068898,1741878653507,-500.0,0.00028418,18]
[356068899,1741878653517,-509.11943356,0.00028418,18]
[356068900,1741878653526,-500.0,0.00028418,18]
[356068901,1741878653536,-500.0,0.00028418,18]
[356068902,1741878653545,-500.0,0.00028418,18]
[356068903,1741878653555,-500.0,0.00028418,18]
[356068904,1741878653565,-500.0,0.00028418,18]
[356068905,1741878653574,-500.0,0.00028418,18]
[356068906,1741878653583,-500.0,0.00028418,18]
[356068907,1741878653595,-500.0,0.00028418,18]
[356068908,1741878653605,-500.0,0.00028418,18]
[356068909,1741878653614,-500.0,0.00028418,18]
[356068910,1741878653624,-500.0,0.00028418,18]
[356068911,1741878653634,-500.0,0.00028418,18]
[356068912,1741878653643,-500.0,0.00028418,18]
[356068913,1741878653653,-500.0,0.00028418,18]
[356068914,1741878653663,-500.0,0.00028418,18]
[356068915,1741878653672,-500.0,0.00028418,18]
[356068916,1741878653682,-500.0,0.00028418,18]
[356068917,1741878653691,-500.0,0.00028418,18]
[356068918,1741878653701,-500.0,0.00028418,18]
[356068919,1741878653712,-500.0,0.00028418,18]
[356068920,1741878653722,-500.0,0.00028418,18]
[356068921,1741878653731,-500.0,0.00028418,18]
[356068922,1741878653741,-500.0,0.00028418,18]
[356068923,1741878653751,-500.0,0.00028418,18]
[356068924,1741878653760,-500.0,0.00028418,18]
[356068925,1741878653770,-500.0,0.00028418,18]
[356068926,1741878653779,-500.0,0.00028418,18]
[356068927,1741878653789,-500.0,0.00028418,18]
[356068928,1741878653799,-330.64476076,0.00028418,18]
[356068929,1741878653808,-500.0,0.00028418,18]
[356068930,1741878653818,-500.0,0.00028418,18]
[356068931,1741878653828,-500.0,0.00028418,18]
[356068932,1741878653837,-814.03,0.00028418,18]
[356068933,1741878653848,-500.0,0.00028418,18]
[356068934,1741878653858,-500.0,0.00028418,18]
[356068935,1741878653867,-500.0,0.00028418,18]
[356068936,1741878653876,-500.0,0.00028418,18]
[356068937,1741878653886,-500.0,0.00028418,18]
[356068938,1741878653895,-500.0,0.00028418,18]
[356068939,1741878653905,-500.0,0.00028418,18]
[356068940,1741878653915,-500.0,0.00028418,18]
[356068941,1741878653924,-500.0,0.00028418,18]
[356068942,1741878653934,-500.0,0.00028418,18]
[356068943,1741878653943,-500.0,0.00028418,18]
[356068944,1741878653953,-500.0,0.00028418,18]
[356068945,1741878653962,-500.0,0.00028418,18]
[356068946,1741878653972,-500.0,0.00028418,18]
[356068947,1741878653981,-561.01,0.00028418,18]
[356068948,1741878653991,-500.0,0.00028418,18]
[356068949,1741878654002,-500.0,0.00028418,10]
[356068950,1741878654012,-500.0,0.00028418,18]
[356068951,1741878654022,-607.72,0.00028418,18]
[356068952,1741878654031,-500.0,0.00028418,18]
[356068953,1741878654041,-500.0,0.00028418,18]
[356068954,1741878654050,-867.63,0.00028418,18]
[356068955,1741878654059,-500.0,0.00028418,18]
[356068956,1741878654069,-509.58,0.00028418,18]
[356068957,1741878654079,-816.85,0.00028418,18]
[356068958,1741878654134,-510.22,0.00028418,18]
[356068959,1741878654144,-500.0,0.00028418,18]
[356068960,1741878654154,-1018.77,0.00028418,18]
[356068961,1741878654163,-500.0,0.00028418,18]
[356068962,1741878654173,-500.0,0.00028418,18]
[356068963,1741878654182,-1006.39,0.00028418,18]
[356068964,1741878654192,-500.0,0.00028418,18]
[356068965,1741878654201,-220.71997892,0.00028418,18]
[356068966,1741878654215,-718.38,0.00028418,18]
[356068967,1741878654224,-500.0,0.00028418,18]
[356068968,1741878654234,-500.0,0.00028418,18]
[356068969,1741878654243,-1500.49,0.00028418,18]
[356068970,1741878654254,-500.0,0.00028418,18]
[356068971,1741878654264,-291.44937423,0.00028418,18]
[356068972,1741878654274,-662.03,0.00028418,18]
[356068973,1741878654284,-1918.55,0.00028418,18]
[356068974,1741878654293,-500.0,0.00028418,18]
[356068975,1741878654303,-709.94,0.00028418,18]
[356068976,1741878654312,-500.0,0.00028418,18]
[356068977,1741878654322,-500.0,0.00028418,18]
[356068978,1741878654331,-325.34847236,0.00028418,18]
[356068979,1741878654341,-500.0,0.00028418,18]
[356068980,1741878654351,-500.0,0.00028418,18]
[356068981,1741878654362,-1233.42,0.00028418,18]
[356068982,1741878654371,-500.0,0.00028418,18]
[356068983,1741878654381,-500.0,0.00028418,18]
[356068984,1741878654390,-500.0,0.00028418,18]
[356068985,1741878654400,-300.75698004,0.00028418,18]
[356068986,1741878654409,-347.43805034,0.00028418,18]
[356068987,1741878654424,-152.56194966,0.00028418,18]
[356068988,1741878654433,-404.97886618,0.00028418,18]
[356068989,1741878654449,-95.02113382,0.00028418,18]
[356068990,1741878654459,-500.0,0.00028418,18]
[356068991,1741878654468,-500.0,0.00028418,18]
[356068992,1741878654478,-117.74627946,0.00028418,18]
[356068993,1741878654489,-382.25372054,0.00028418,18]
[356068994,1741878654498,-500.0,0.00028418,18]
[356068995,1741878654507,-500.0,0.00028418,18]
[356068996,1741878654517,-500.0,0.00028418,18]
[356068997,1741878654527,-853.18,0.00028418,18]
[356068998,1741878654536,-500.0,0.00028418,18]
[356068999,1741878654545,-500.0,0.00028418,18]
[356069000,1741878654555,-366.77627946,0.00028418,18]
[356069002,1741879554861,31737.36166237,9.88e-05,2]
[356069003,1741879554882,4000.0,9.88e-05,2]
[356069004,1741879554907,10000.0,9.88e-05,2]
[356069005,1741879554927,4875.18676989,9.88e-05,2]
[356069012,1741879692356,500.22597332,0.0001,2]
[356069023,1741879832301,-300.0,0.00016879,2]
[356069025,1741879832311,-200.0,0.0001688,30]
[356069027,1741879832323,-1434.30223989,0.0001688,30]
[356069029,1741879832336,-3341.37093081,0.0001688,30]
[356069030,1741879832348,-4458.09753364,0.0001688,30]
[356069031,1741879832450,-817.92,0.0001688,30]
[356069032,1741879832463,-732.03601333,0.0001688,30]
[356069033,1741879832474,-2674.2,0.0001688,30]
[356069034,1741879832526,-6927.63500677,0.0001688,30]
[356069035,1741879832567,-266.0,0.0001688,30]
[356069036,1741879832611,-1000.0,0.0001688,30]
[356069037,1741879832624,-23130.70364705,0.0001688,30]
[356069038,1741879832635,-300.0,0.00018438,2]
[356069039,1741879832645,-201.89690782,0.000189,2]
[356069040,1741879832657,-250.0,0.00019412,2]
[356069041,1741879832666,-733.52,0.00025127,2]
[356069042,1741879832676,-761.86,0.00026849,2]
[356069043,1741879832686,-87.32355299,0.00027146,120]
[356069044,1741879832698,-111.15644701,0.00027146,120]
[356069045,1741879832708,-150.0,0.00027378,2]
[356069046,1741879832718,-4396.99997619,0.00027379,2]
[356069047,1741879832738,-11545.50068718,0.00027379,2]
[356069070,1741879838296,-1422.45524172,0.00027379,2]
[356069071,1741879838307,-1405.82486786,0.00027379,2]
[356069072,1741879838319,-56.72922705,0.00027379,2]
[356069073,1741879838328,-501.71612195,0.00027391,2]
[356069074,1741879838554,-231.80387805,0.00027391,2]
[356069075,1741879838570,-1000.0,0.00027403,2]
[356069076,1741879838584,-150.0,0.00027411,2]
[356069077,1741879838596,-580.35,0.0002742,120]
[356069078,1741879838606,-200.0,0.00027424,2]
[356069079,1741879838616,-3030.6,0.00027473,2]
[356069080,1741879838626,-159.32,0.00027473,30]
[356069085,1741879838669,-168.1018418,0.00027883,4]
[356069086,1741879838679,-150.99,0.00027883,2]
[356069087,1741879838689,-229.1,0.00027926,5]
[356069088,1741879838698,-505.41573236,0.00027973,5]
[356069089,1741879838707,-160.32115647,0.00027973,5]
[356069090,1741879838717,-504.83923717,0.00027973,5]
[356069091,1741879838726,-1404.20340609,0.00027997,31]
[356069092,1741879838742,-385.85442402,0.00027997,31]
[356069095,1741879840439,-451.23661252,0.00027997,31]
[356069096,1741879840451,-5076.7744638,0.00027997,31]
[356069097,1741879840463,-326.29392,0.00027997,31]
[356069098,1741879840773,-408.48808,0.00027997,31]
[356069099,1741879840784,-10925.03706431,0.00027997,31]
[356069100,1741879840860,-37089.83460897,0.00027997,31]
[356069101,1741879840872,-491.32204952,0.00027997,31]
[356069107,1741879843431,-3933.0455086,0.00027997,31]
[356069117,1741879843882,-627.77380027,0.00027997,31]
[356069120,1741879843904,-3268.2265522,0.00027997,31]
[356069123,1741879843915,-743.88844783,0.00027997,31]
[356069125,1741879843930,-4868.02106187,0.00027997,31]
[356069127,1741879843939,-232.04014,0.0002813,41]
[356069129,1741879843948,-571.29790002,0.00028291,15]
[356069131,1741879843958,-1584.22582472,0.00028299,2]
[356069133,1741879843967,-476.2362,0.00028302,2]
[356069135,1741879843976,-168.49,0.00028348,19]
[356069137,1741879843986,-1332.174,0.00028348,19]
[356069139,1741879843995,-151.51,0.0002839,2]
[356069140,1741879844004,-500.0,0.0002839,18]
[356069142,1741879844013,-500.0,0.0002839,18]
[356069144,1741879844022,-500.0,0.0002839,18]
[356069145,1741879844031,-590.64929502,0.0002839,18]
[356069147,1741879844041,-500.0,0.0002839,18]
[356069149,1741879844051,-151520.983021,0.0002839,3]
[356069151,1741879844060,-33671.3295602,0.00028391,3]
[356069152,1741879844070,-12479.3646886,0.00028391,3]
[356069154,1741879844079,-33671.3295602,0.00028392,3]
[356069156,1741879844088,-7487.61881316,0.00028392,3]
[356069158,1741879844100,-500.0,0.00028399,18]
[356069159,1741879844109,-500.0,0.00028399,18]
[356069161,1741879844119,-500.0,0.00028399,18]
[356069163,1741879844130,-500.0,0.00028399,18]
[356069164,1741879844140,-500.0,0.00028399,18]
[356069166,1741879844149,-500.0,0.00028399,18]
[356069168,1741879844158,-500.0,0.00028399,18]
[356069169,1741879844167,-500.0,0.00028399,18]
[356069171,1741879844177,-500.0,0.00028399,18]
[356069173,1741879844186,-500.0,0.00028399,18]
[356069175,1741879844195,-4996.40766057,0.00028399,3]
[356069177,1741879844207,-62346.25145983,0.00028399,3]
[356069178,1741879844216,-24958.7293772,0.00028399,3]
[356069180,1741879844225,-101013.988681,0.000284,3]
[356069182,1741879844234,-20504.4317033,0.000284,3]
[356069184,1741879844245,-29413.0270511,0.000284,3]
[356069185,1741879844255,-500.0,0.000284,18]
[356069187,1741879844264,-500.0,0.000284,18]
[356069189,1741879844273,-500.0,0.000284,18]
[356069191,1741879844283,-500.0,0.000284,18]
[356069192,1741879844292,-500.0,0.000284,18]
[356069194,1741879844302,-500.0,0.000284,18]
[356069196,1741879844312,-512.44869374,0.000284,18]
[356069198,1741879844321,-500.0,0.000284,18]
[356069200,1741879844331,-500.0,0.000284,18]
[356069202,1741879844340,-500.0,0.000284,18]
[356069203,1741879844350,-500.0,0.000284,18]
[356069205,1741879844359,-500.0,0.000284,18]
[356069207,1741879844368,-500.0,0.000284,18]
[356069208,1741879844378,-500.0,0.000284,18]
[356069210,1741879844387,-500.0,0.000284,18]
[356069212,1741879844396,-500.0,0.000284,18]
[356069214,1741879844406,-500.0,0.000284,18]
[356069215,1741879844415,-500.0,0.000284,18]
[356069217,1741879844424,-500.0,0.000284,18]
[356069219,1741879844434,-500.0,0.000284,18]
[356069220,1741879844444,-500.0,0.000284,18]
[356069222,1741879844453,-500.0,0.000284,18]
[356069224,1741879844462,-500.0,0.000284,18]
[356069226,1741879844472,-500.0,0.000284,18]
[356069228,1741879844481,-500.0,0.000284,18]
[356069230,1741879844490,-500.0,0.000284,18]
[356069231,1741879844499,-500.0,0.000284,18]
[356069233,1741879844509,-712.27,0.000284,18]
[356069235,1741879844518,-500.0,0.000284,18]
[356069236,1741879844529,-500.0,0.000284,18]
[356069237,1741879844538,-500.0,0.000284,18]
[356069238,1741879844547,-714.74,0.000284,18]
[356069239,1741879844557,-500.0,0.000284,10]
[356069240,1741879844567,-117.5455309,0.000284,18]
[356069241,1741879844584,-382.4544691,0.000284,18]
[356069242,1741879844595,-500.0,0.000284,18]
[356069243,1741879844606,-759.18,0.000284,18]
[356069244,1741879844616,-500.0,0.000284,18]
[356069245,1741879844626,-500.0,0.000284,18]
[356069246,1741879844636,-500.0,0.000284,18]
[356069247,1741879844648,-748.06,0.000284,18]
[356069248,1741879844658,-500.0,0.000284,18]
[356069249,1741879844667,-891.43,0.000284,18]
[356069250,1741879844677,-579.28,0.000284,18]
[356069251,1741879844686,-500.0,0.000284,18]
[356069252,1741879844696,-880.59,0.000284,18]
[356069253,1741879844706,-500.0,0.000284,18]
[356069254,1741879844716,-500.0,0.000284,18]
[356069255,1741879844726,-500.0,0.000284,18]
[356069256,1741879844735,-500.0,0.000284,18]
[356069257,1741879844745,-628.58,0.000284,18]
[356069258,1741879844754,-500.0,0.000284,18]
[356069259,1741879844764,-500.0,0.000284,18]
[356069260,1741879844774,-1312.93,0.000284,18]
[356069261,1741879844783,-500.0,0.000284,18]
[356069262,1741879844792,-500.0,0.000284,18]
[356069263,1741879844802,-500.0,0.000284,18]
[356069264,1741879844812,-621.19,0.000284,18]
[356069265,1741879844821,-1678.73,0.000284,18]
[356069266,1741879844831,-500.0,0.000284,18]
[356069267,1741879844841,-500.0,0.000284,18]
[356069268,1741879844851,-500.0,0.000284,18]
[356069269,1741879844861,-500.0,0.000284,18]
[356069270,1741879844871,-1079.24,0.000284,18]
[356069271,1741879844880,-500.0,0.000284,18]
[356069272,1741879844890,-500.0,0.000284,18]
[356069273,1741879844902,-500.0,0.000284,18]
[356069274,1741879844911,-500.0,0.000284,18]
[356069275,1741879844921,-500.0,0.000284,18]
[356069276,1741879844931,-500.0,0.000284,18]
[356069277,1741879844940,-500.0,0.000284,18]
[356069278,1741879844950,-746.53,0.000284,18]
[356069279,1741879844960,-500.0,0.000284,18]
[356069280,1741879844969,-500.0,0.000284,18]
[356069281,1741879844979,-1359.0,0.000284,2]
[356069282,1741879844989,-500.0,0.000284,18]
[356069283,1741879844998,-500.0,0.000284,18]
[356069284,1741879845008,-2380.9,0.000284,18]
[356069285,1741879845017,-500.0,0.000284,18]
[356069286,1741879845026,-561.65,0.000284,18]
[356069287,1741879845036,-500.0,0.000284,18]
[356069288,1741879845045,-500.0,0.000284,18]
[356069289,1741879845054,-500.0,0.000284,18]
[356069290,1741879845063,-541.68,0.000284,18]
[356069291,1741879845073,-500.0,0.000284,18]
[356069292,1741879845082,-500.0,0.000284,18]
[356069293,1741879845091,-500.0,0.000284,18]
[356069294,1741879845101,-500.0,0.000284,18]
[356069295,1741879845110,-500.0,0.000284,18]
[356069296,1741879845119,-526.5,0.000284,18]
[356069297,1741879845130,-500.0,0.000284,18]
[356069298,1741879845139,-500.0,0.000284,18]
[356069299,1741879845148,-500.0,0.000284,18]
[356069300,1741879845158,-500.0,0.000284,18]
[356069301,1741879845167,-527.19,0.000284,18]
[356069302,1741879845176,-500.0,0.000284,18]
[356069303,1741879845186,-500.0,0.000284,18]
[356069304,1741879845195,-2394.11,0.000284,18]
[356069305,1741879845205,-500.0,0.000284,18]
[356069306,1741879845214,-500.0,0.000284,18]
[356069307,1741879845223,-500.0,0.000284,18]
[356069308,1741879845233,-1000.0,0.000284,18]
[356069309,1741879845241,-720.22,0.000284,18]
[356069310,1741879845250,-577.43,0.000284,18]
[356069311,1741879845259,-500.0,0.000284,18]
[356069312,1741879845268,-254.91767066,0.000284,18]
[356069313,1741879845277,-500.0,0.000284,18]
[356069314,1741879845287,-500.0,0.000284,18]
[356069315,1741879845296,-500.0,0.000284,18]
[356069316,1741879845305,-500.0,0.000284,18]
[356069317,1741879845314,-500.0,0.000284,18]
[356069318,1741879845323,-500.0,0.000284,18]
[356069319,1741879845332,-500.0,0.000284,18]
[356069320,1741879845342,-1052.06,0.000284,18]
[356069321,1741879845351,-500.0,0.000284,18]
[356069322,1741879845360,-500.0,0.000284,18]
[356069323,1741879845369,-500.0,0.000284,18]
[356069324,1741879845378,-531.76,0.000284,18]
[356069325,1741879845387,-697.27,0.000284,18]
[356069326,1741879845397,-612.17334819,0.000284,18]
[356069327,1741879845407,-500.0,0.00028401,18]
[356069328,1741879845416,-500.0,0.00028401,18]
[356069329,1741879845425,-500.0,0.00028401,18]
[356069330,1741879845435,-500.0,0.00028401,18]
[356069331,1741879845445,-500.0,0.00028401,18]
[356069332,1741879845454,-500.0,0.00028401,18]
[356069333,1741879845463,-500.0,0.00028401,18]
[356069334,1741879845472,-500.0,0.00028401,18]
[356069335,1741879845482,-500.0,0.00028401,18]
[356069336,1741879845491,-594.06638475,0.00028401,18]
[356069337,1741879845500,-500.0,0.00028401,18]
[356069338,1741879845509,-500.0,0.00028401,18]
[356069339,1741879845519,-500.0,0.00028401,18]
[356069340,1741879845527,-500.0,0.00028401,18]
[356069341,1741879845536,-500.0,0.00028401,18]
[356069342,1741879845545,-500.0,0.00028401,18]
[356069343,1741879845555,-500.0,0.00028401,18]
[356069344,1741879845565,-500.0,0.00028401,18]
[356069345,1741879845579,-500.0,0.00028401,18]
[356069346,1741879845588,-500.0,0.00028401,18]
[356069347,1741879845600,-571.58533808,0.00028401,18]
[356069348,1741879845610,-500.0,0.00028401,18]
[356069349,1741879845619,-500.0,0.00028401,18]
[356069350,1741879845628,-500.0,0.00028401,18]
[356069351,1741879845638,-500.0,0.00028401,18]
[356069352,1741879845648,-500.0,0.00028401,18]
[356069353,1741879845658,-500.0,0.00028401,18]
[356069354,1741879845667,-500.0,0.00028401,18]
[356069355,1741879845676,-500.0,0.00028401,18]
[356069356,1741879845686,-500.0,0.00028401,18]